bitfinex/quotes_ETHUSD_20250620
["timestamp","ask_amount","ask_price","bid_price","bid_amount"]
[1750446409114,49.5836534,2414.4,2414.3,0.02048461]
[1750446409313,19.58358599,2414.4,2414.3,0.02048461]
[1750446409766,53.72540176,2414.4,2414.3,0.02048461]
[1750446409970,57.14631052,2414.4,2414.3,0.02048299]
[1750446410120,57.37545091,2414.4,2414.3,0.02048218]
[1750446410319,53.23319349,2414.4,2414.3,0.02048137]
[1750446410540,42.4040531,2414.4,2414.3,0.02048137]
[1750446410742,22.0880531,2414.4,2414.3,4.16246869]
[1750446410974,21.70634459,2414.4,2414.3,0.02048137]
[1750446411266,21.32463197,2414.4,2414.3,0.02048137]
[1750446411615,20.5691,2414.4,2414.3,0.02048137]
[1750446412252,20.5621,2414.4,2414.3,0.02048137]
[1750446413023,50.5621,2414.4,2414.3,0.02048137]
[1750446413426,20.90746464,2414.4,2414.3,0.02048137]
[1750446413620,53.39646464,2414.4,2414.3,0.02048137]
[1750446414360,23.39646464,2414.4,2414.3,0.02048137]
[1750446415253,23.80729009,2414.4,2414.3,0.02048137]
[1750446416167,58.49910586,2414.4,2414.3,0.02048137]
[1750446416457,58.15374122,2414.4,2414.3,0.02048137]
[1750446416825,43.78492545,2414.4,2414.3,0.02048137]
[1750446417028,13.78492545,2414.4,2414.3,0.02048137]
[1750446417261,23.43492545,2414.4,2414.3,0.02048137]
[1750446417564,53.43492545,2414.4,2414.3,0.02048137]
[1750446417864,57.57674122,2414.4,2414.3,0.02048137]
[1750446418163,53.43492545,2414.4,2414.3,0.02048137]
[1750446418866,53.78029009,2414.4,2414.3,0.02048137]
[1750446419035,54.01058495,2414.4,2414.3,0.02048137]
[1750446419555,54.39444448,2414.4,2414.3,0.02048137]
[1750446419738,57.92210586,2414.4,2414.3,0.02048137]
[1750446419941,58.92023734,2414.4,2414.3,0.02048137]
[1750446420343,54.39452468,2414.4,2414.3,0.02048137]
[1750446420657,24.77851423,2414.4,2414.3,0.02048137]
[1750446420857,54.77851423,2414.4,2414.3,0.02048137]
[1750446421162,54.77887983,2414.4,2414.3,0.02048137]
[1750446421574,54.77907887,2414.4,2414.3,0.02048137]
[1750446421857,11.75499605,2414.4,2414.3,0.02048137]
[1750446422064,8.85431372,2414.4,2414.3,4.16246869]
[1750446422440,18.85431372,2414.4,2414.3,4.16246869]
[1750446422664,53.47371733,2414.4,2414.3,0.02048137]
[1750446422877,49.33193397,2414.4,2414.3,0.02048137]
[1750446423037,52.23218076,2414.4,2414.3,0.02048137]
[1750446423233,52.23216543,2414.4,2414.3,0.02048137]
[1750446423437,52.23217019,2414.4,2414.3,0.02048137]
[1750446423632,52.17167019,2414.4,2414.3,0.02048137]
[1750446423838,52.23217364,2414.4,2414.3,0.02048137]
[1750446424151,52.2321702,2414.4,2414.3,0.02048137]
[1750446424345,52.23215115,2414.4,2414.3,0.02048137]
[1750446424666,0.38427571,2414.4,2414.3,4.93806869]
[1750446424870,2.072,2414.6,2414.5,4.14164423]
[1750446425165,9.575,2414.6,2414.5,4.18305573]
[1750446425534,9.575,2414.6,2414.5,4.20355573]
[1750446425729,7.503,2414.6,2414.5,5.56140493]
[1750446425934,7.503,2414.6,2414.5,5.58190493]
[1750446427134,7.503,2414.6,2414.5,4.14164423]
[1750446427367,7.88745791,2414.6,2414.5,4.14164423]
[1750446427765,7.88745791,2414.6,2414.3,0.79608137]
[1750446427766,29.83432609,2414.6,2414.3,0.02048137]
[1750446428070,10.99947638,2414.5,2414.3,4.16237397]
[1750446428256,8.26582748,2414.4,2414.3,4.16246869]
[1750446428460,0.38442398,2414.4,2414.3,5.78282565]
[1750446428761,7.497,2414.4,2414.3,5.82424366]
[1750446428957,3.26399815,2415.2,2414.9,4.14085399]
[1750446429175,18.5002656,2415.1,2414.9,4.14085399]
[1750446429472,1.00126384,2415.0,2414.7,4.14119931]
[1750446429635,8.4982562,2414.9,2414.7,4.14119931]
[1750446429836,17.497,2414.9,2414.8,4.1411297]
[1750446430165,18.49826973,2414.9,2414.8,4.1411297]
[1750446430369,18.1131664,2414.9,2414.8,4.1411297]
[1750446430576,18.49826441,2414.9,2414.8,4.1411297]
[1750446430766,18.49825369,2414.9,2414.8,4.1411297]
[1750446430965,18.11316275,2414.9,2414.8,4.1411297]
[1750446431170,18.49798377,2414.9,2414.8,4.1411297]
[1750446431358,18.49800457,2414.9,2414.8,4.1411297]
[1750446431560,18.49785542,2414.9,2414.8,4.1411297]
[1750446432160,18.49762281,2414.9,2414.8,4.1411297]
[1750446432364,18.49762281,2414.9,2414.6,4.14146416]
[1750446432570,10.76971618,2414.8,2414.3,0.02048137]
[1750446432774,10.0605,2414.6,2414.4,4.14179508]
[1750446432970,10.0605,2414.6,2414.4,4.14171576]
[1750446432971,20.54742556,2414.5,2414.4,4.14171576]
[1750446433179,20.54742556,2414.5,2414.3,4.16236621]
[1750446433180,0.0605,2414.4,2414.3,4.16236621]
[1750446433350,0.8300295,2414.4,2414.3,4.16236621]
[1750446433556,0.38476481,2414.4,2414.3,0.02048137]
[1750446433883,2.489,2414.9,2414.5,0.8073]
[1750446434105,10.0,2414.7,2414.6,4.14131236]
[1750446434281,11.00060967,2414.7,2414.6,4.14131236]
[1750446434663,11.00049787,2414.7,2414.6,4.14131236]
[1750446434862,11.00042295,2414.7,2414.6,4.14131236]
[1750446435282,11.00041799,2414.7,2414.6,4.14131236]
[1750446435483,11.00039352,2414.7,2414.6,4.14131236]
[1750446435789,11.00025606,2414.7,2414.6,4.14131236]
[1750446436090,11.00025261,2414.7,2414.6,4.14131236]
[1750446436265,10.23082804,2414.7,2414.6,4.14131236]
[1750446436456,11.00027932,2414.7,2414.6,4.14131236]
[1750446436857,1.00027932,2414.7,2414.6,4.14131236]
[1750446437059,1.00023601,2414.7,2414.6,4.14131236]
[1750446437257,1.00023601,2414.7,2414.5,4.14152965]
[1750446437457,8.23440261,2414.6,2414.5,4.14152965]
[1750446437896,8.23432148,2414.6,2414.5,4.14152965]
[1750446438205,8.23427939,2414.6,2414.5,4.14152965]
[1750446438366,7.8496392,2414.6,2414.5,4.14152965]
[1750446438569,8.2342393,2414.6,2414.5,4.14152965]
[1750446438789,8.23418711,2414.6,2414.5,4.14152965]
[1750446439269,7.84958877,2414.6,2414.5,4.14152965]
[1750446439896,7.84958877,2414.6,2414.5,4.14164423]
[1750446440307,32.5495,2414.4,2414.3,0.02048056]
[1750446440513,10.0605,2413.8,2413.0,0.8092]
[1750446440819,3.3042,2413.9,2413.1,4.1439594]
[1750446440820,30.0,2413.5,2413.1,4.1439594]
[1750446441110,0.0605,2413.3,2412.9,4.14438086]
[1750446441269,7.85258877,2413.2,2412.7,0.7759]
[1750446441633,0.38392703,2413.1,2413.0,4.14421881]
[1750446441786,9.538,2413.1,2413.0,4.14421881]
[1750446443002,19.538,2413.1,2413.0,4.14421881]
[1750446443668,0.8017,2413.9,2413.5,4.14336026]
[1750446443864,10.0,2413.7,2413.4,4.14340919]
[1750446444092,0.82860646,2413.6,2413.4,4.14340919]
[1750446444373,17.84500322,2413.5,2413.4,4.14340919]
[1750446444824,17.84500322,2413.5,2413.3,4.14360816]
[1750446444998,7.461,2413.5,2413.0,0.82885975]
[1750446445316,10.38380598,2413.4,2413.3,4.14367993]
[1750446445538,10.0,2413.4,2413.3,4.14367993]
[1750446445940,10.0,2413.4,2413.2,4.14378028]
[1750446446091,17.452,2413.3,2413.2,4.14378028]
[1750446448393,17.452,2413.3,2413.0,4.14412503]
[1750446448598,0.0596,2413.1,2412.5,4.14507656]
[1750446448795,10.0,2413.3,2413.1,4.14394918]
[1750446449015,2.073,2413.0,2412.9,4.14439056]
[1750446449209,9.509,2413.0,2412.9,4.14439056]
[1750446452122,9.5686,2413.0,2412.8,4.14454803]
[1750446452326,9.5686,2413.0,2412.4,0.7807]
[1750446452635,0.8529,2412.9,2412.4,0.7807]
[1750446452835,7.42,2412.8,2412.7,4.14466462]
[1750446453035,0.0596,2412.7,2412.4,0.7807]
[1750446453332,7.416,2412.6,2412.3,4.14534232]
[1750446453507,0.0596,2412.5,2412.3,4.14534232]
[1750446453835,9.5136,2412.4,2412.3,4.14534232]
[1750446454609,9.454,2412.4,2412.3,4.14534232]
[1750446454809,9.5136,2412.4,2412.3,4.14534232]
[1750446455010,10.8396,2413.2,2412.5,4.14507772]
[1750446455337,19.455,2413.1,2413.0,4.14421881]
[1750446455831,9.455,2413.1,2413.0,4.14421881]
[1750446456201,12.035,2413.1,2413.0,4.14421881]
[1750446456403,10.78,2413.2,2413.1,4.14404707]
[1750446456806,18.216,2413.2,2413.1,4.82073942]
[1750446457302,18.216,2413.2,2413.1,4.14404707]
[1750446459332,0.0596,2413.0,2412.9,4.14439056]
[1750446459531,10.0,2412.9,2412.6,4.14473932]
[1750446459701,0.0596,2412.7,2412.6,4.14473932]
[1750446459901,2.0956,2412.7,2412.5,4.14503067]
[1750446460139,7.4936,2412.6,2412.5,4.14503067]
[1750446460338,0.0596,2412.5,2412.4,4.14521952]
[1750446460739,7.434,2412.6,2412.5,4.14507772]
[1750446461828,9.9826,2412.6,2412.5,4.14507772]
[1750446462921,0.8107,2412.8,2412.7,4.14473411]
[1750446463123,10.2747,2412.8,2412.7,4.14473411]
[1750446463733,9.5236,2412.8,2412.7,4.14473411]
[1750446464634,9.464,2412.8,2412.7,4.14473411]
[1750446465835,12.489,2412.9,2412.8,4.14456233]
[1750446466212,10.0,2413.1,2413.0,4.14421881]
[1750446466418,21.9886,2413.1,2412.9,4.14428923]
[1750446466615,0.0596,2413.0,2412.9,4.14428923]
[1750446468666,2.489,2412.9,2412.6,4.14483085]
[1750446468871,7.391,2412.8,2412.7,4.14473411]
[1750446469058,12.5486,2413.1,2413.0,4.14421881]
[1750446469263,22.30533891,2413.1,2413.0,4.14421881]
[1750446469568,22.92122596,2413.1,2413.0,4.14421881]
[1750446470254,22.53690686,2413.1,2413.0,4.14421881]
[1750446470422,22.92186907,2413.1,2413.0,4.14421881]
[1750446470623,22.92206958,2413.1,2412.9,4.14430406]
[1750446470826,1.00006958,2413.0,2412.9,4.14430406]
[1750446471052,21.922,2413.1,2412.9,4.14430406]
[1750446471258,1.00001483,2413.0,2412.9,4.14430406]
[1750446471458,0.0596,2412.9,2412.5,4.14493621]
[1750446471673,8.16816116,2412.8,2412.6,4.14481139]
[1750446471874,7.399,2412.8,2412.7,4.14473411]
[1750446472037,0.76904954,2412.8,2412.7,4.14473411]
[1750446472372,10.0,2413.1,2413.0,4.14421881]
[1750446472676,7.39,2413.1,2413.0,4.96181811]
[1750446473266,2.036,2413.6,2413.5,4.14336026]
[1750446473470,10.04112517,2413.6,2413.5,4.14336026]
[1750446473784,2.80489916,2413.6,2413.5,4.14336026]
[1750446473927,7.391,2413.6,2413.5,4.96096026]
[1750446478177,10.782,2414.3,2414.2,4.14215889]
[1750446478385,21.18196159,2414.3,2414.1,4.14227163]
[1750446478679,0.76844875,2414.2,2414.1,4.14227163]
[1750446479349,0.76848054,2414.2,2414.1,4.14227163]
[1750446479761,0.38424024,2414.2,2414.1,4.14227163]
[1750446479964,0.38413712,2414.2,2414.1,4.14227163]
[1750446480347,12.56315212,2414.2,2413.8,4.14272978]
[1750446480566,0.0567,2414.0,2413.8,4.14272978]
[1750446480771,7.366,2413.9,2413.8,4.14272978]
[1750446480971,7.366,2413.9,2413.2,0.8037]
[1750446481183,30.0,2413.7,2413.2,0.8037]
[1750446481385,10.0,2413.3,2412.5,0.8037]
[1750446481559,10.0,2413.1,2412.8,4.14448821]
[1750446481759,10.0,2412.9,2412.6,4.14473789]
[1750446481960,7.4307,2412.8,2412.6,4.14490591]
[1750446482179,7.4307,2412.8,2412.7,4.14473411]
[1750446483053,0.8792,2413.0,2412.8,4.14441244]
[1750446483374,9.39,2412.9,2412.8,4.14441244]
[1750446485287,0.0567,2413.1,2412.8,4.14441244]
[1750446485288,0.8225,2413.6,2413.3,4.14358077]
[1750446485497,10.37760109,2413.5,2413.0,2.28]
[1750446485678,0.0567,2413.3,2413.0,6.42421411]
[1750446485989,7.4227,2413.2,2413.0,6.42421411]
[1750446486557,0.0567,2413.1,2413.0,2.28]
[1750446486772,0.0567,2413.1,2413.0,4.14421881]
[1750446487756,7.366,2413.2,2413.1,4.14404707]
[1750446487960,9.371,2413.2,2413.1,4.14404707]
[1750446488162,9.4277,2413.2,2413.0,4.1441393]
[1750446488483,9.371,2413.2,2413.1,4.14404707]
[1750446489216,10.0,2413.4,2413.3,4.14370364]
[1750446489498,20.42191204,2413.4,2413.3,4.14370364]
[1750446489795,20.42191204,2413.4,2413.2,4.14377674]
[1750446490094,19.4237,2413.4,2413.2,4.14377674]
[1750446490294,1.05495175,2413.3,2412.6,6.42475969]
[1750446490502,0.38398345,2413.2,2413.1,4.14403831]
[1750446490706,0.38398345,2413.2,2412.7,4.86758008]
[1750446490707,50.0,2413.5,2413.0,6.42420974]
[1750446490874,3.3115,2413.6,2413.0,6.42420974]
[1750446490875,9.357,2413.4,2413.1,0.7821]
[1750446491074,9.357,2413.4,2413.3,4.14370364]
[1750446492903,0.8633,2414.1,2413.8,4.14283314]
[1750446493118,0.38417112,2414.0,2413.9,4.14267368]
[1750446493278,2.012,2414.2,2414.1,4.14233047]
[1750446493475,20.02249784,2414.2,2414.0,4.14240434]
[1750446493684,0.99911655,2414.1,2414.0,4.14240434]
[1750446494007,0.99911655,2414.1,2413.9,4.14260832]
[1750446494008,11.05592165,2414.1,2413.9,4.1426007]
[1750446494171,10.0567,2414.1,2414.0,4.14250207]
[1750446494372,0.0567,2414.0,2413.9,4.1426007]
[1750446494701,17.77702892,2414.0,2413.9,4.1426007]
[1750446495008,17.77702892,2414.0,2413.8,4.14283361]
[1750446495196,0.0567,2413.9,2413.8,4.1428453]
[1750446495587,17.3927,2414.0,2413.9,4.14267368]
[1750446495905,18.00339263,2414.0,2413.8,4.14272275]
[1750446496122,0.0567,2413.9,2413.8,4.14272275]
[1750446496409,17.332,2414.0,2413.6,4.14314632]
[1750446496574,7.343,2413.9,2413.4,2.28]
[1750446496771,10.0567,2414.0,2413.5,4.14336026]
[1750446497003,9.4107,2413.8,2413.7,4.14301694]
[1750446497409,9.354,2413.8,2413.7,4.14301694]
[1750446498275,9.354,2413.8,2413.6,4.14311823]
[1750446498480,0.0567,2413.7,2413.6,4.14311823]
[1750446499106,0.0567,2413.7,2413.6,4.14318859]
[1750446499434,9.354,2413.8,2413.2,0.7719]
[1750446499580,9.4107,2413.8,2413.6,4.14303693]
[1750446499980,9.4107,2413.8,2413.7,4.14301694]
[1750446500421,9.4107,2413.8,2413.6,4.14308476]
[1750446500635,9.354,2413.8,2413.6,4.14311663]
[1750446500930,0.0567,2413.7,2413.6,4.1431868]
[1750446501230,3.3018,2413.7,2413.2,4.143718]
[1750446501403,14.84118137,2413.5,2413.2,4.14370681]
[1750446501604,7.3737,2413.4,2413.3,4.14363339]
[1750446502041,0.0567,2413.3,2413.2,4.14378108]
[1750446502588,7.317,2413.4,2413.3,4.14370364]
[1750446503234,7.3737,2413.4,2413.3,4.14370364]
[1750446503435,0.0567,2413.3,2413.2,4.14378463]
[1750446504188,8.1381,2413.4,2413.1,4.14394874]
[1750446504393,8.1381,2413.4,2413.2,4.14387535]
[1750446504723,8.1381,2413.4,2413.0,2.28]
[1750446504927,0.0564,2413.2,2413.0,4.1440632]
[1750446505133,0.0564,2413.0,2412.9,4.1442876]
[1750446505511,9.326,2413.1,2413.0,4.14421881]
[1750446505712,0.8094,2413.6,2413.0,4.97304115]
[1750446505894,10.3235853,2413.5,2413.4,4.14343045]
[1750446506101,0.0564,2413.4,2413.3,4.14361444]
[1750446506299,0.67029228,2413.4,2413.3,4.14361444]
[1750446506547,0.0564,2413.4,2413.3,4.14361444]
[1750446506840,0.44004166,2413.4,2413.3,4.14361444]
[1750446507133,2.92904166,2413.4,2413.3,4.14361444]
[1750446507444,2.5454,2413.4,2413.3,4.14361444]
[1750446508308,0.38349738,2413.4,2413.3,4.14361444]
[1750446508527,2.5454,2413.6,2413.4,4.14336221]
[1750446508720,2.5454,2413.6,2413.3,4.14362859]
[1750446508721,10.37176193,2413.5,2412.9,0.7705]
[1750446508924,9.318,2413.5,2413.3,4.14361082]
[1750446509100,0.0564,2413.4,2413.3,4.14361082]
[1750446509295,9.3744,2413.5,2413.4,4.14353194]
[1750446509500,9.98823349,2413.5,2413.4,4.14353194]
[1750446509731,19.98823349,2413.5,2413.4,4.14353194]
[1750446509934,19.93183349,2413.5,2413.4,4.14353194]
[1750446510103,19.70164903,2413.5,2413.4,4.14353194]
[1750446510610,0.38364903,2413.5,2413.4,4.14353194]
[1750446510823,3.323,2413.9,2413.7,4.14290108]
[1750446511041,0.99786001,2413.8,2413.5,4.14331544]
[1750446511201,7.312,2413.7,2413.5,4.14336026]
[1750446511403,11.18793603,2414.3,2413.4,0.8253]
[1750446511700,11.18793603,2414.3,2414.2,4.14215889]
[1750446511701,10.782,2414.3,2414.2,4.14215889]
[1750446512023,28.107,2414.3,2414.2,4.14215889]
[1750446513854,0.8154,2414.2,2414.0,4.14240215]
[1750446514054,7.3714,2414.1,2414.0,4.14250207]
[1750446514768,0.0564,2414.0,2413.8,4.14271667]
[1750446515066,17.3734,2413.9,2413.8,4.14271667]
[1750446515656,17.3734,2413.9,2413.6,4.14311098]
[1750446515860,17.3734,2413.9,2413.7,4.14291975]
[1750446515861,0.0564,2413.8,2413.7,4.14291975]
[1750446516865,17.317,2413.9,2413.8,4.1428453]
[1750446517066,10.8384,2414.3,2414.2,4.14215889]
[1750446517274,21.13196498,2414.3,2414.2,4.14215889]
[1750446517438,30.90200797,2414.3,2414.2,4.14215889]
[1750446517632,31.13199724,2414.3,2414.2,4.14215889]
[1750446518169,10.0,2414.2,2414.1,4.14223993]
[1750446519037,11.05390549,2414.2,2414.1,4.14223993]
[1750446519238,10.44005463,2414.2,2414.1,4.14223993]
[1750446519550,10.67016001,2414.2,2414.1,4.14223993]
[1750446519744,10.43989122,2414.2,2414.1,4.14223993]
[1750446519968,10.0564,2414.2,2414.1,4.14223993]
[1750446520142,0.0564,2414.2,2414.1,4.14223993]
[1750446520735,20.079,2414.3,2414.1,4.14223993]
[1750446521069,30.1354,2414.3,2414.2,4.14215889]
[1750446521231,31.07583338,2414.3,2414.2,4.14215889]
[1750446521435,31.07583338,2414.3,2414.1,4.14222746]
[1750446521635,30.1354,2414.3,2414.2,4.14215889]
[1750446521844,2.489,2414.2,2414.1,4.14224199]
[1750446522245,2.5454,2414.2,2414.0,4.14241313]
[1750446522436,7.3504,2414.1,2414.0,4.14241313]
[1750446522868,7.3504,2414.1,2413.8,2.28]
[1750446522869,3.3082,2414.0,2413.8,2.28]
[1750446523178,9.8394,2413.9,2413.8,6.4228453]
[1750446523341,9.8394,2413.9,2413.8,2.28]
[1750446524574,3.15854504,2413.9,2413.8,2.28]
[1750446524773,42.8227187,2413.9,2413.8,2.28]
[1750446525071,42.82269013,2413.9,2413.8,2.28]
[1750446525481,42.82268211,2413.9,2413.8,2.28]
[1750446525676,12.82268211,2413.9,2413.8,6.4228453]
[1750446525883,12.82266995,2413.9,2413.8,6.4228453]
[1750446526186,12.82264062,2413.9,2413.8,6.4228453]
[1750446526869,12.82263974,2413.9,2413.8,2.28]
[1750446527072,12.82263974,2413.9,2413.8,4.1428453]
[1750446527073,12.82264406,2413.9,2413.8,4.1428453]
[1750446527278,12.3830652,2413.9,2413.7,4.14291987]
[1750446527582,2.489,2414.0,2413.9,4.14267368]
[1750446527774,12.82171137,2414.0,2413.7,4.14295969]
[1750446527958,11.769,2414.0,2413.8,4.14277868]
[1750446528158,0.66951371,2413.9,2413.8,4.14277868]
[1750446528381,0.66951719,2413.9,2413.8,4.14277868]
[1750446528595,0.0564,2413.8,2413.5,0.8289]
[1750446528755,7.3504,2413.7,2413.6,4.14305053]
[1750446529784,7.294,2413.7,2413.6,4.14305053]
[1750446531088,0.0564,2413.6,2413.5,4.14330658]
[1750446532448,9.783,2413.7,2413.6,4.14318859]
[1750446532793,9.8394,2413.7,2413.6,4.14318859]
[1750446532962,9.783,2413.7,2413.6,4.14318859]
[1750446533170,14.84118137,2414.2,2413.8,4.1428453]
[1750446533171,0.0564,2413.9,2413.8,4.1428453]
[1750446533466,11.8254,2413.9,2413.8,4.1428453]
[1750446533675,0.0564,2413.8,2413.5,4.14328006]
[1750446533881,9.782,2413.7,2413.6,4.14308444]
[1750446534478,9.8384,2413.7,2413.6,4.14308444]
[1750446535180,9.782,2413.7,2413.6,4.14308444]
[1750446535382,7.293,2413.7,2413.6,4.97172089]
[1750446535553,7.293,2413.7,2413.6,4.14308444]
[1750446536256,10.78006345,2413.7,2413.3,2.28]
[1750446536485,0.0615,2413.6,2413.5,4.1432752]
[1750446537956,9.8435,2413.7,2413.6,4.14318859]
[1750446538300,10.8416802,2413.7,2413.6,4.14318859]
[1750446538488,10.84168392,2413.7,2413.6,4.14318859]
[1750446538850,10.84186459,2413.7,2413.6,4.14318859]
[1750446539054,10.8425637,2413.7,2413.6,4.14318859]
[1750446539274,10.84258991,2413.7,2413.6,4.14318859]
[1750446539864,10.84292927,2413.7,2413.6,4.14318859]
[1750446540266,10.61223902,2413.7,2413.6,4.14318859]
[1750446540484,10.84316783,2413.7,2413.6,4.14318859]
[1750446540685,2.489,2414.0,2413.8,4.14268525]
[1750446540881,12.76695678,2413.9,2413.8,4.14278036]
[1750446541067,12.82845678,2413.9,2413.8,4.14278036]
[1750446541792,12.76719299,2413.9,2413.8,4.14278036]
[1750446541984,12.76718547,2413.9,2413.8,4.14278036]
[1750446542186,12.76687757,2413.9,2413.8,4.14278036]
[1750446542499,12.82837757,2413.9,2413.8,4.14278036]
[1750446542695,12.82840976,2413.9,2413.8,4.14278036]
[1750446542887,12.82840976,2413.9,2413.7,4.14287986]
[1750446543191,0.99890976,2413.8,2413.7,4.14287986]
[1750446543391,4.5375,2413.9,2413.8,4.1428453]
[1750446543702,12.75407018,2413.9,2413.8,4.1428453]
[1750446543994,2.97376282,2413.9,2413.8,5.05425782]
[1750446544180,10.782,2414.3,2414.2,4.14215889]
[1750446544388,21.04696721,2414.3,2414.2,4.97055889]
[1750446544693,12.98684228,2414.3,2414.2,4.97055889]
[1750446544894,20.047,2414.3,2414.2,6.13034356]
[1750446545082,0.8171,2415.0,2414.8,4.1411297]
[1750446545083,2.489,2414.9,2414.8,4.1411297]
[1750446545287,12.75365405,2414.9,2414.8,4.1411297]
[1750446545486,5.46265405,2414.9,2414.8,4.1411297]
[1750446545793,12.75366788,2414.9,2414.8,4.1411297]
[1750446545997,5.46268206,2414.9,2414.8,4.1411297]
[1750446546200,12.7536968,2414.9,2414.8,4.1411297]
[1750446546562,1.02179417,2414.9,2414.8,5.04492882]
[1750446546778,0.40652326,2414.9,2414.8,7.38683532]
[1750446547104,0.4062746,2415.4,2415.3,4.14027242]
[1750446547287,1.974,2415.8,2415.7,4.13958686]
[1750446547487,9.84021894,2415.8,2415.7,4.13958686]
[1750446547685,9.60936464,2415.8,2415.7,4.13958686]
[1750446547863,10.22476112,2415.8,2415.7,4.13958686]
[1750446548058,9.60936464,2415.8,2415.7,4.13958686]
[1750446548278,10.22475002,2415.8,2415.7,4.13958686]
[1750446548477,9.60936464,2415.8,2415.7,4.13958686]
[1750446548684,9.60936464,2415.8,2415.7,5.74951813]
[1750446549319,0.76987455,2415.8,2415.7,5.74951813]
[1750446549501,8.05987455,2415.8,2415.7,5.79091011]
[1750446549795,7.71450991,2415.8,2415.7,5.74951813]
[1750446550597,7.71450991,2415.8,2415.7,0.782]
[1750446550799,7.71450991,2415.8,2415.7,4.13958686]
[1750446551000,7.71250991,2415.8,2415.7,4.13958686]
[1750446551325,7.71150991,2415.8,2415.7,4.13958686]
[1750446553118,7.71150991,2415.8,2415.3,0.90584163]
[1750446553119,0.0615,2415.6,2415.5,4.13992962]
[1750446553317,0.0615,2415.6,2415.0,4.91484591]
[1750446553584,7.3475,2415.5,2415.3,4.14013566]
[1750446553989,0.0615,2415.4,2415.1,4.14044546]
[1750446554222,2.0345,2415.3,2415.1,4.14054691]
[1750446554522,7.3465,2415.2,2415.0,4.14070096]
[1750446554720,7.3465,2415.2,2415.1,4.14061529]
[1750446555925,7.285,2415.2,2415.1,4.14061529]
[1750446556226,0.0615,2415.6,2415.1,4.14061529]
[1750446556227,1.973,2415.6,2415.5,4.13988847]
[1750446556423,0.0615,2415.5,2415.2,4.14041018]
[1750446556623,1.973,2415.6,2415.4,4.14010101]
[1750446556797,1.973,2415.6,2415.5,4.13992962]
[1750446556994,2.0345,2415.6,2415.5,4.13992962]
[1750446557190,9.3195,2415.6,2415.4,4.14005703]
[1750446557395,0.0615,2415.5,2415.3,4.14026987]
[1750446557598,0.0615,2415.3,2414.8,0.8278]
[1750446557798,7.3455,2415.2,2415.1,4.14052705]
[1750446558125,20.0615,2415.7,2415.6,4.13967085]
[1750446558328,10.0,2415.6,2415.5,4.13983262]
[1750446558515,0.0615,2415.6,2415.5,4.13983262]
[1750446558830,10.0,2415.6,2415.4,4.13995127]
[1750446559127,0.0615,2415.5,2415.4,4.13995127]
[1750446559831,0.0615,2415.5,2415.1,4.1405121]
[1750446560007,0.0615,2415.3,2415.1,4.1405121]
[1750446560203,0.0615,2415.3,2415.2,4.14044385]
[1750446560518,7.284,2415.4,2415.2,4.14044385]
[1750446560519,7.284,2415.4,2415.3,4.14027242]
[1750446561326,10.0615,2415.6,2414.9,4.14095821]
[1750446561534,9.257,2415.4,2415.3,4.14027242]
[1750446561999,9.3185,2415.4,2415.3,4.14027242]
[1750446562399,1.24223891,2415.8,2415.3,4.1401098]
[1750446562596,0.40593891,2415.8,2415.7,4.13958686]
[1750446562800,9.256,2415.8,2415.7,4.13958686]
[1750446563024,9.3175,2415.8,2415.7,4.13958686]
[1750446563993,0.0615,2415.7,2415.2,3.0563]
[1750446564298,0.0615,2415.7,2415.6,4.13975823]
[1750446564738,9.256,2415.8,2415.5,4.13985899]
[1750446564916,0.0585,2415.7,2415.5,4.13985899]
[1750446565093,0.0585,2415.7,2415.5,4.13983049]
[1750446565300,4.9091042,2415.0,2414.5,2.28]
[1750446565617,40.0,2414.4,2414.0,4.14237073]
[1750446565804,7.39906321,2414.5,2414.1,4.14233047]
[1750446565805,10.0585,2414.2,2414.1,4.14233047]
[1750446566008,10.771,2414.9,2414.3,4.14198732]
[1750446566208,0.0585,2414.6,2414.4,4.14170795]
[1750446566437,7.3895,2414.5,2414.4,4.14170795]
[1750446566637,7.331,2414.5,2414.4,4.14170795]
[1750446567254,7.3895,2414.5,2414.4,4.14170795]
[1750446569215,0.0585,2413.8,2412.7,0.776]
[1750446569472,0.2748,2412.5,2411.7,4.1464527]
[1750446569753,0.2163,2412.5,2412.4,4.14524954]
[1750446569952,9.8293,2412.5,2412.4,4.14524954]
[1750446570316,9.8283,2412.5,2412.4,4.14524954]
[1750446572550,9.8283,2412.5,2412.4,4.16574954]
[1750446573052,9.8283,2412.5,2412.4,5.07446586]
[1750446574738,9.612,2412.5,2412.4,5.07446586]
[1750446576024,9.612,2412.5,2412.4,5.05396586]
[1750446576226,9.612,2412.5,2412.4,4.14524954]
[1750446580954,9.6705,2412.5,2412.4,4.14524954]
[1750446581150,0.0585,2412.4,2412.3,4.14533966]
[1750446581466,9.6705,2412.5,2412.4,4.14524954]
[1750446584465,9.6705,2412.5,2412.3,4.14533966]
[1750446584466,0.0585,2412.4,2412.3,4.14533966]
[1750446585461,9.612,2412.5,2412.4,4.14524954]
[1750446585965,9.6705,2412.5,2412.4,4.14524954]
[1750446590245,9.5665,2412.5,2412.4,4.14524954]
[1750446590945,9.94808221,2412.5,2412.4,4.14524954]
[1750446591673,9.87558221,2412.5,2412.4,4.14524954]
[1750446592482,1.16102334,2412.8,2412.7,4.14473411]
[1750446592483,0.40632334,2412.8,2412.7,4.14473411]
[1750446592651,9.93300735,2412.8,2412.7,4.14473411]
[1750446592979,0.0585,2412.7,2412.6,4.14487203]
[1750446593137,0.44001631,2412.7,2412.6,4.14487203]
[1750446593777,0.67015911,2412.7,2412.6,4.14487203]
[1750446594276,0.61165911,2412.7,2412.6,4.14487203]
[1750446594474,9.87751631,2412.7,2412.6,4.14487203]
[1750446595157,9.87051631,2412.7,2412.6,4.14487203]
[1750446595783,10.25656658,2412.7,2412.6,4.14487203]
[1750446595946,9.87276226,2412.7,2412.6,4.14487203]
[1750446596146,10.25649968,2412.7,2412.6,4.14487203]
[1750446596346,10.25645331,2412.7,2412.6,4.14487203]
[1750446597045,10.48666055,2412.7,2412.6,4.14487203]
[1750446597282,10.48806324,2412.7,2412.6,4.14487203]
[1750446597484,9.489,2412.7,2412.6,4.14487203]
[1750446597784,10.49025789,2412.7,2412.6,4.14487203]
[1750446598087,10.55045789,2412.7,2412.6,4.14487203]
[1750446598388,10.5504878,2412.7,2412.6,4.14487203]
[1750446598553,10.55086727,2412.7,2412.6,4.14487203]
[1750446598882,9.489,2412.7,2412.6,4.14487203]